fUSD/lending_fUSD_20250211
["ID","MTS","AMOUNT","RATE_DAILY","PERIOD"]
[352779032,1739308237650,-6074.78,0.00013233,2]
[352779033,1739308237660,-255.0,0.00013346,2]
[352779034,1739308237669,-1304.34585,0.0001338,2]
[352779035,1739308237679,-1000.0,0.00013469,2]
[352779036,1739308237689,-500.0,0.00013521,2]
[352779038,1739308237699,-895.33034571,0.00013675,3]
[352779039,1739308237709,-7735.40939203,0.00013677,2]
[352779040,1739308237719,-1304.34586,0.0001369,2]
[352779041,1739308237729,-49325.44,0.00013699,2]
[352779042,1739308237739,-10037.7,0.00013699,2]
[352779043,1739308237749,-9609.98043404,0.00013699,2]
[352779064,1739308239700,-315.289,0.00013699,2]
[352779065,1739308239711,-370.292,0.00013699,2]
[352779066,1739308240039,-9413.20434523,0.00013699,2]
[352779067,1739308240051,-2016.97422073,0.00013699,2]
[352779068,1739308240059,-165.91,0.00013699,2]
[352779069,1739308240068,-1556.62,0.00013699,2]
[352779070,1739308240080,-500.0,0.00013699,2]
[352779071,1739308240091,-6067.13991873,0.00013699,2]
[352779072,1739308240102,-7130.10532159,0.00013699,2]
[352779073,1739308240113,-6853.01676781,0.00013699,2]
[352779074,1739308240128,-408.50799187,0.00013699,2]
[352779075,1739308240137,-91.90448426,0.00013699,2]
[352779076,1739308240152,-108.09551574,0.00013699,2]
[352779077,1739308240162,-284.78699645,0.00013699,2]
[352779078,1739308240171,-1043.09748781,0.000137,2]
[352779079,1739308240182,-361.36251219,0.000137,2]
[352779080,1739308240191,-131.10681781,0.000137,2]
[352779081,1739308240224,-266.18743307,0.000137,2]
[352779103,1739308242573,-1007.16574912,0.000137,2]
[352779104,1739308242583,-206.882213,0.00013728,2]
[352779116,1739308245493,-607.297787,0.00013728,2]
[352779117,1739308245503,-320.92967083,0.00013775,2]
[352779118,1739308245513,-343.83,0.00013912,2]
[352779119,1739308245523,-172.08,0.0001396,2]
[352779120,1739308245532,-1304.34585,0.00014,2]
[352779121,1739308245541,-800.0,0.00014068,2]
[352779122,1739308245550,-496.55,0.0001418,2]
[352779123,1739308245561,-1304.34585,0.0001431,2]
[352779124,1739308245571,-2959.65635615,0.00014454,2]
[352779125,1739308245586,-425.6632476,0.00014454,2]
[352779126,1739308245597,-672.88233863,0.00014454,2]
[352779127,1739308245608,-1905.22885867,0.00014454,2]
[352779141,1739308249464,4157.8567,8.836e-05,2]
[352779142,1739308251214,6761.4039,8.836e-05,2]
[352779143,1739308338434,9659.5293,8.836e-05,2]
[352779144,1739308347905,3408.9892,8.836e-05,2]
[352779145,1739308347933,32846.438,8.836e-05,2]
[352779147,1739308545492,-158.69,0.00010137,2]
[352779148,1739308560915,-3968.66980314,0.00010781,7]
[352779149,1739308625946,3968.66980314,8.836e-05,2]
[352779150,1739308625971,3809.97980314,8.836e-05,2]
[352779151,1739308625995,3968.66980314,8.836e-05,2]
[352779152,1739308626022,9628.34829058,8.836e-05,2]
[352779154,1739308920288,744.8477,8.836e-05,2]
[352779155,1739308922717,-2000.0,0.0001178,2]
[352779156,1739308922744,-500.0,0.00011859,2]
[352779157,1739308922770,-1000.0,0.00012054,2]
[352779158,1739308922796,-5554.0,0.000127,5]
[352779159,1739309088876,1500.0,8.699e-05,2]
[352779160,1739309088903,2379.866,8.699e-05,2]
[352779195,1739309328003,7567.5127,8.836e-05,2]
[352779201,1739309388542,1986.4873,8.836e-05,2]
[352779202,1739309388571,338.2914,8.836e-05,2]
[352779216,1739309431731,-340.34,9.973e-05,2]
[352779217,1739309431742,-159.66,9.973e-05,2]
[352779218,1739309431751,-300.0,9.998e-05,2]
[352779219,1739309431761,-150.0,9.998e-05,2]
[352779220,1739309431770,-241.6515143,9.999e-05,2]
[352779221,1739309431779,-177.67238224,9.999e-05,2]
[352779222,1739309431788,-500.0,9.999e-05,2]
[352779223,1739309431797,-500.0,9.999e-05,2]
[352779224,1739309431806,-500.0,9.999e-05,2]
[352779225,1739309431815,-500.0,9.999e-05,2]
[352779226,1739309431824,-500.0,9.999e-05,2]
[352779227,1739309431834,-158.36112819,9.999e-05,2]
[352779228,1739309431843,-500.0,9.999e-05,2]
[352779229,1739309431852,-500.0,9.999e-05,2]
[352779230,1739309431862,-500.0,9.999e-05,2]
[352779231,1739309431871,-615.28332429,9.999e-05,2]
[352779232,1739309431880,-500.0,9.999e-05,2]
[352779233,1739309431889,-500.0,9.999e-05,2]
[352779234,1739309431898,-500.0,9.999e-05,2]
[352779235,1739309431907,-500.0,9.999e-05,2]
[352779236,1739309431917,-500.0,9.999e-05,2]
[352779237,1739309431926,-500.0,9.999e-05,2]
[352779238,1739309431935,-500.0,9.999e-05,2]
[352779239,1739309431943,-500.0,9.999e-05,2]
[352779240,1739309431953,-500.0,9.999e-05,2]
[352779241,1739309431963,-500.0,9.999e-05,2]
[352779242,1739309431972,-500.0,9.999e-05,2]
[352779243,1739309431982,-500.0,9.999e-05,2]
[352779244,1739309431991,-500.0,9.999e-05,2]
[352779245,1739309432001,-500.0,9.999e-05,2]
[352779246,1739309432011,-500.0,9.999e-05,2]
[352779247,1739309432021,-500.0,9.999e-05,2]
[352779248,1739309432031,-500.0,9.999e-05,2]
[352779249,1739309432042,-500.0,9.999e-05,2]
[352779250,1739309432051,-500.0,9.999e-05,2]
[352779251,1739309432060,-500.0,9.999e-05,2]
[352779252,1739309432070,-500.0,9.999e-05,2]
[352779253,1739309432079,-500.0,9.999e-05,2]
[352779254,1739309432089,-249.99999999,9.999e-05,2]
[352779255,1739309432099,-500.0,9.999e-05,2]
[352779260,1739309432246,-500.0,9.999e-05,2]
[352779263,1739309432308,-35470.89177343,0.0001,2]
[352779264,1739309432320,-7567.512731,0.0001,2]
[352779265,1739309432336,-387.0,0.0001,2]
[352779266,1739309432394,-273861.25679777,0.0001,2]
[352779267,1739309432403,-72878.08130157,0.0001,2]
[352779268,1739309432413,-241.65151428,0.00010399,2]
[352779269,1739309432423,-241.65151428,0.00010898,2]
[352779270,1739309432432,-420.0,0.00010998,2]
[352779271,1739309432441,-255.0,0.00010998,2]
[352779272,1739309432450,-20064.35894605,0.00011099,2]
[352779273,1739309432461,-20064.35894602,0.00011366,2]
[352779274,1739309432470,-907.64,0.00011713,2]
[352779275,1739309432479,-587.0,0.00012098,2]
[352779276,1739309432488,-300.0,0.00012098,2]
[352779277,1739309432497,-20064.35894602,0.00012433,2]
[352779278,1739309432507,-526.07,0.00012914,2]
[352779279,1739309432515,-313.17,0.000133,2]
[352779280,1739309432524,-193.0,0.00013307,2]
[352779281,1739309432533,-20064.35894602,0.00013499,2]
[352779282,1739309432543,-2000.0,0.00013567,2]
[352779283,1739309432552,-480.96,0.00013669,2]
[352779284,1739309432561,-344.22,0.00013699,2]
[352779285,1739309432570,-500.0,0.00013699,2]
[352779286,1739309432579,-200.0,0.00013699,2]
[352779287,1739309432588,-42436.79,0.00013699,2]
[352779288,1739309432598,-500.0,0.00013699,2]
[352779289,1739309432607,-500.0,0.00013699,2]
[352779290,1739309432616,-500.0,0.00013699,2]
[352779291,1739309432625,-366.42564367,0.00013699,2]
[352779292,1739309432634,-907.64,0.00013977,2]
[352779293,1739309432644,-431.83725236,0.00014035,2]
[352779294,1739309432653,-500.0,0.00014068,2]
[352779295,1739309432662,-1100.0,0.00014068,2]
[352779296,1739309432671,-1100.0,0.00014068,2]
[352779297,1739309432680,-23900.0,0.00014071,2]
[352779298,1739309432689,-562.050319,0.00014164,2]
[352779299,1739309432699,-1290.01,0.00014233,2]
[352779300,1739309432710,-5748.59850797,0.00014303,2]
[352779301,1739309432719,-280.20236,0.0001431,2]
[352779302,1739309432728,-150.0,0.00014324,2]
[352779303,1739309432737,-1000.0,0.00014369,2]
[352779304,1739309432746,-162.13,0.0001437,2]
[352779305,1739309432757,-1447.42,0.00014403,2]
[352779306,1739309432767,-171.7,0.00014415,2]
[352779307,1739309432776,-1617.9,0.00014417,2]
[352779308,1739309432786,-335.88868285,0.00014495,2]
[352779309,1739309432796,-952.81,0.00014503,2]
[352779310,1739309432805,-16814.99,0.00014504,2]
[352779311,1739309432816,-170.03,0.0001452,2]
[352779312,1739309432825,-39432.82,0.0001453,2]
[352779313,1739309432834,-10496.41090233,0.00014566,2]
[352779323,1739309437851,-9567.94804369,0.00014566,2]
[352779324,1739309437861,-184.14,0.00014661,2]
[352779326,1739309437871,-280.20236,0.0001483,2]
[352779328,1739309437880,-215.64258879,0.000149,2]
[352779330,1739309437890,-215.64258879,0.000149,2]
[352779332,1739309437899,-215.64258879,0.000149,2]
[352779334,1739309437908,-5748.59850791,0.00014925,2]
[352779336,1739309437918,-600.0,0.00015,2]
[352779338,1739309437928,-9563.38214543,0.00015,10]
[352779340,1739309437937,-414.97638372,0.00015,10]
[352779342,1739309437946,-335.88868284,0.00015331,2]
[352779344,1739309437956,-1100.0,0.00015438,2]
[352779346,1739309437966,-1100.0,0.00015438,2]
[352779348,1739309437975,-280.20237,0.0001545,2]
[352779350,1739309437985,-343.83,0.00015458,2]
[352779352,1739309437995,-1000.0,0.000155,3]
[352779354,1739309438004,-1000.0,0.000155,3]
[352779357,1739309438014,-300.0,0.00015538,2]
[352779360,1739309438023,-5748.59850791,0.00015547,2]
[352779362,1739309438033,-496.55,0.00015598,2]
[352779365,1739309438042,-18688.6968711,0.00015633,2]
[352779418,1739309440064,-1375.66207492,0.00015633,2]
[352779419,1739309440074,-71.53016742,0.00015736,2]
[352779543,1739309442955,-330.396606,0.00014493,2]
[352779544,1739309442967,-541.54785095,0.00015736,2]
[352779545,1739309442978,-439.73,0.00015891,2]
[352779546,1739309442989,-167.99206881,0.00015891,2]
[352779547,1739309443071,-1053.70793119,0.00015891,2]
[352779548,1739309443081,-280.20236,0.0001608,2]
[352779549,1739309443090,-6585.06390881,0.00016116,3]
[352781022,1739309462237,554.0,8.973e-05,2]
[352781023,1739309462271,554.0,8.973e-05,2]
[352781024,1739309483405,3881.8052,8.699e-05,2]
[352781025,1739309493431,31393.373,8.836e-05,2]
[352781026,1739309528081,1004.6704,8.836e-05,2]
[352781028,1739309651888,1220.9272,8.836e-05,2]
[352781029,1739309724394,4012.6013,8.836e-05,2]
[352781031,1739309954179,1060.0,8.842e-05,2]
[352781032,1739309980514,38515.1231,8.836e-05,2]
[352781035,1739310332254,7775.2242,8.836e-05,2]
[352781040,1739310557175,120705.5938,8.836e-05,2]
[352781229,1739310631885,-488.879,8.851e-05,2]
[352781230,1739310631895,-959.1676,8.973e-05,2]
[352781231,1739310631949,-1090.3533,8.973e-05,2]
[352781232,1739310631960,-500.0,8.973e-05,2]
[352781233,1739310631970,-189.88196351,8.973e-05,2]
[352781234,1739310631980,-500.0,9.473e-05,2]
[352781235,1739310631990,-500.0,9.87e-05,2]
[352781236,1739310632000,-168.2,0.00010137,2]
[352781237,1739310632010,-412.58,0.00010137,2]
[352781238,1739310632020,-500.0,0.0001239,2]
[352781239,1739310632030,-189.8819635,0.00012556,2]
[352781240,1739310632040,-816.87,0.00012808,2]
[352781241,1739310632050,-550.0,0.00013,2]
[352781242,1739310632060,-281.85,0.000135,2]
[352781243,1739310632070,-1560.64,0.00013699,2]
[352781244,1739310632080,-275.37,0.00013699,2]
[352781245,1739310632090,-500.0,0.00014068,2]
[352781246,1739310632099,-1000.0,0.00014068,2]
[352781247,1739310632109,-900.0,0.00014068,2]
[352781248,1739310632118,-2000.0,0.00014774,2]
[352781249,1739310632128,-1500.0,0.00014926,2]
[352781250,1739310632139,-600.0,0.00015,2]
[352781251,1739310632148,-162.13,0.00015056,2]
[352781252,1739310632159,-816.87,0.00015072,2]
[352781253,1739310632168,-1000.0,0.00015139,2]
[352781254,1739310632178,-200.0,0.00015141,2]
[352781255,1739310632190,-250.0,0.00015152,2]
[352781256,1739310632200,-476.4,0.00015256,2]
[352781257,1739310632210,-642.09,0.00015366,2]
[352781258,1739310632219,-300.0,0.00015438,2]
[352781259,1739310632229,-1000.0,0.00015438,2]
[352781260,1739310632238,-900.0,0.00015438,2]
[352781261,1739310632247,-431.83725236,0.00015635,2]
[352781262,1739310632258,-150.0,0.0001573,2]
[352781263,1739310632267,-150.0,0.00015735,2]
[352781264,1739310632276,-150.0,0.00015744,2]
[352781265,1739310632286,-150.0,0.00015751,2]
[352781266,1739310632296,-150.0,0.00015752,2]
[352781267,1739310632306,-374.7002127,0.00015758,2]
[352781268,1739310632315,-150.0,0.0001577,2]
[352781269,1739310632324,-150.0,0.00015775,2]
[352781270,1739310632334,-150.0,0.00015786,2]
[352781271,1739310632344,-150.0,0.00015788,2]
[352781272,1739310632353,-150.0,0.00015795,2]
[352781273,1739310632362,-150.0,0.00015803,2]
[352781274,1739310632372,-150.0,0.00015805,2]
[352781275,1739310632381,-150.0,0.00015807,2]
[352781276,1739310632391,-150.0,0.00015811,2]
[352781277,1739310632400,-150.0,0.00015812,2]
[352781278,1739310632410,-150.0,0.00015821,2]
[352781279,1739310632420,-150.0,0.00015822,2]
[352781280,1739310632429,-150.0,0.00015825,2]
[352781281,1739310632440,-150.0,0.00015826,2]
[352781282,1739310632450,-150.0,0.00015826,2]
[352781284,1739310632459,-150.0,0.00015834,2]
[352781285,1739310632468,-150.0,0.00015837,2]
[352781287,1739310632477,-150.0,0.00015842,2]
[352781289,1739310632486,-150.0,0.00015846,2]
[352781291,1739310632496,-150.0,0.00015853,2]
[352781293,1739310632505,-150.0,0.00015861,2]
[352781295,1739310632514,-150.0,0.00015866,2]
[352781297,1739310632523,-150.0,0.0001587,2]
[352781299,1739310632533,-150.0,0.0001587,2]
[352781301,1739310632542,-150.0,0.00015871,2]
[352781303,1739310632551,-150.0,0.00015872,2]
[352781305,1739310632561,-150.0,0.00015873,2]
[352781307,1739310632571,-150.0,0.00015877,2]
[352781308,1739310632580,-150.0,0.00015878,2]
[352781310,1739310632590,-150.0,0.00015882,2]
[352781312,1739310632603,-150.0,0.00015894,2]
[352781314,1739310632612,-150.0,0.00015898,2]
[352781316,1739310632622,-150.0,0.000159,2]
[352781318,1739310632631,-876.28,0.000159,2]
[352781320,1739310632640,-363.37,0.000159,2]
[352781322,1739310632650,-150.0,0.00015904,2]
[352781324,1739310632660,-150.0,0.00015905,2]
[352781326,1739310632670,-150.0,0.00015911,2]
[352781328,1739310632681,-186.80157,0.0001592,2]
[352781330,1739310632692,-150.0,0.00015934,2]
[352781332,1739310632702,-150.0,0.00015937,2]
[352781334,1739310632711,-150.0,0.00015941,2]
[352781335,1739310632720,-150.0,0.00015942,2]
[352781336,1739310632729,-300.0,0.00015944,2]
[352781337,1739310632740,-150.0,0.00015945,2]
[352781338,1739310632749,-150.0,0.00015945,2]
[352781339,1739310632758,-150.0,0.00015945,2]
[352781340,1739310632767,-500.0,0.00015951,2]
[352781341,1739310632776,-2000.0,0.00015951,2]
[352781342,1739310632785,-500.0,0.00015951,2]
[352781343,1739310632800,-500.0,0.00015951,2]
[352781344,1739310632809,-200.0,0.00015951,2]
[352781345,1739310632820,-150.0,0.00015955,2]
[352781346,1739310632829,-150.0,0.00015956,2]
[352781348,1739310632841,-150.0,0.00015967,2]
[352781350,1739310632851,-150.0,0.00015971,2]
[352781352,1739310632860,-150.0,0.00015973,2]
[352781354,1739310632871,-150.0,0.00015999,2]
[352781356,1739310632881,-9999.99,0.00016116,2]
[352781358,1739310632891,-300.0,0.00016165,2]
[352781360,1739310632900,-189.8819635,0.00016238,2]
[352781362,1739310632909,-150.0,0.00016302,2]
[352781364,1739310632919,-150.0,0.00016302,2]
[352781366,1739310632928,-150.0,0.00016302,2]
[352781368,1739310632939,-150.0,0.00016302,2]
[352781369,1739310632948,-438.84,0.00016302,2]
[352781371,1739310632957,-438.84,0.00016302,2]
[352781373,1739310632967,-150.0,0.00016302,2]
[352781375,1739310632976,-438.84,0.00016302,2]
[352781377,1739310632986,-150.0,0.00016302,2]
[352781379,1739310632995,-150.0,0.00016302,2]
[352781381,1739310633004,-438.84,0.00016302,2]
[352781383,1739310633015,-438.38,0.00016302,2]
[352781385,1739310633024,-4024.0189556,0.00016338,2]
[352781387,1739310633034,-8025.74357848,0.00016338,2]
[352781389,1739310633044,-306.99173302,0.00016338,2]
[352781391,1739310633054,-935.06051109,0.00016338,2]
[352781393,1739310633064,-7806.91,0.00016428,2]
[352781395,1739310633075,-500.0,0.00016437,2]
[352781397,1739310633085,-207.38062707,0.00016437,2]
[352781399,1739310633094,-500.0,0.00016437,2]
[352781401,1739310633104,-186.52833243,0.00016437,2]
[352781403,1739310633114,-500.0,0.00016437,2]
[352781405,1739310633124,-500.0,0.00016437,2]
[352781407,1739310633134,-350.0,0.00016437,2]
[352781409,1739310633143,-500.0,0.00016437,2]
[352781411,1739310633154,-500.0,0.00016437,2]
[352781413,1739310633164,-500.0,0.00016437,2]
[352781415,1739310633174,-500.0,0.00016437,2]
[352781417,1739310633183,-500.0,0.00016437,2]
[352781419,1739310633195,-351.79675379,0.00016437,2]
[352781421,1739310633207,-177.67238224,0.00016437,2]
[352781424,1739310633218,-500.0,0.00016437,2]
[352781426,1739310633228,-500.0,0.00016437,2]
[352781427,1739310633238,-350.0,0.00016437,2]
[352781429,1739310633248,-500.0,0.00016437,2]
[352781432,1739310633258,-54.876755,0.00016437,2]
[352781434,1739310633272,-445.123245,0.00016437,2]
[352781436,1739310633282,-249.99999999,0.00016437,2]
[352781458,1739310633292,-500.0,0.00016437,2]
[352781460,1739310633506,-500.0,0.00016437,2]
[352781462,1739310633516,-253.75499186,0.00016437,2]
[352781464,1739310633527,-500.0,0.00016437,2]
[352781467,1739310633536,-500.0,0.00016437,2]
[352781469,1739310633546,-500.0,0.00016437,2]
[352781471,1739310633556,-500.0,0.00016437,2]
[352781472,1739310633567,-202.02378117,0.00016438,2]
[352781474,1739310633577,-436.93170626,0.00016438,2]
[352781476,1739310633587,-500.0,0.00016438,2]
[352781478,1739310633596,-500.0,0.00016438,2]
[352781480,1739310633606,-500.0,0.00016438,2]
[352781482,1739310633616,-500.0,0.00016438,2]
[352781484,1739310633625,-500.0,0.00016438,2]
[352781486,1739310633635,-500.0,0.00016438,2]
[352781488,1739310633645,-477.90446196,0.00016438,2]
[352781490,1739310633655,-341.69775308,0.00016438,2]
[352781492,1739310633664,-500.0,0.00016438,2]
[352781494,1739310633673,-500.0,0.00016438,2]
[352781496,1739310633683,-223.20966926,0.00016438,2]
[352781498,1739310633694,-500.0,0.00016438,2]
[352781500,1739310633704,-500.0,0.00016438,2]
[352781502,1739310633714,-500.0,0.00016438,2]
[352781503,1739310633723,-501.00044974,0.00016438,2]
[352781504,1739310633734,-500.0,0.00016438,2]
[352781505,1739310633743,-500.0,0.00016438,2]
[352781506,1739310633752,-500.0,0.00016438,2]
[352781507,1739310633762,-500.0,0.00016438,2]
[352781508,1739310633771,-461.44662168,0.00016438,2]
[352781509,1739310633827,-39.85643418,0.00016438,2]
[352781510,1739310633838,-451.81356582,0.00016438,2]
[352781511,1739310633850,-48.18643418,0.00016438,2]
[352781512,1739310633860,-500.0,0.00016438,2]
[352781513,1739310633870,-409.64356582,0.00016438,2]
[352781514,1739310633898,-90.35643418,0.00016438,2]
[352781515,1739310633908,-500.0,0.00016438,2]
[352781516,1739310633918,-500.0,0.00016438,2]
[352781517,1739310633931,-216.99356583,0.00016438,2]
[352781518,1739310633946,-283.00643417,0.00016438,2]
[352781519,1739310633956,-500.0,0.00016438,2]
[352781520,1739310633966,-500.0,0.00016438,2]
[352781521,1739310633976,-500.0,0.00016438,2]
[352781522,1739310633986,-500.0,0.00016438,2]
[352781523,1739310633996,-500.0,0.00016438,7]
[352781524,1739310634005,-490.4186147,0.00016438,2]
[352781525,1739310634015,-500.0,0.00016438,2]
[352781526,1739310634024,-500.0,0.00016438,2]
[352781527,1739310634034,-301.05663903,0.00016438,2]
[352781528,1739310634044,-500.0,0.00016438,2]
[352781529,1739310634054,-500.0,0.00016438,2]
[352781530,1739310634063,-500.0,0.00016438,2]
[352781531,1739310634073,-500.0,0.00016438,2]
[352781532,1739310634082,-500.0,0.00016438,2]
[352781533,1739310634092,-500.0,0.00016438,2]
[352781534,1739310634101,-500.0,0.00016438,2]
[352781535,1739310634111,-500.0,0.00016438,2]
[352781536,1739310634121,-500.0,0.00016438,2]
[352781537,1739310634131,-500.0,0.00016438,2]
[352781538,1739310634141,-500.0,0.00016438,2]
[352781539,1739310634151,-500.0,0.00016438,2]
[352781540,1739310634161,-500.0,0.00016438,2]
[352781541,1739310634171,-500.0,0.00016438,2]
[352781542,1739310634181,-500.0,0.00016438,2]
[352781543,1739310634191,-500.0,0.00016438,2]
[352781544,1739310634201,-500.0,0.00016438,2]
[352781545,1739310634211,-500.0,0.00016438,2]
[352781546,1739310634221,-500.0,0.00016438,2]
[352781547,1739310634230,-500.0,0.00016438,2]
[352781548,1739310634240,-503.97870002,0.00016438,2]
[352781549,1739310634250,-500.0,0.00016438,2]
[352781550,1739310634260,-500.0,0.00016438,2]
[352781551,1739310634270,-500.0,0.00016438,2]
[352781552,1739310634280,-500.0,0.00016438,2]
[352781553,1739310634291,-500.0,0.00016438,2]
[352781554,1739310634301,-500.0,0.00016438,2]
[352781555,1739310634311,-500.0,0.00016438,2]
[352781556,1739310634322,-500.0,0.00016438,2]
[352781557,1739310634331,-466.82854933,0.00016438,2]
[352781558,1739310634342,-500.0,0.00016438,2]
[352781559,1739310634352,-500.0,0.00016438,2]
[352781560,1739310634362,-533.55631367,0.00016438,2]
[352781561,1739310634373,-500.0,0.00016438,2]
[352781562,1739310634382,-500.0,0.00016438,2]
[352781563,1739310634392,-500.0,0.00016438,2]
[352781564,1739310634403,-500.0,0.00016438,2]
[352781565,1739310634414,-500.0,0.00016438,2]
[352781566,1739310634424,-500.0,0.00016438,2]
[352781567,1739310634435,-500.0,0.00016438,2]
[352781568,1739310634447,-500.0,0.00016438,2]
[352781569,1739310634457,-500.0,0.00016438,2]
[352781570,1739310634467,-500.0,0.00016438,2]
[352781571,1739310634478,-500.0,0.00016438,2]
[352781572,1739310634488,-501.58552708,0.00016438,2]
[352781573,1739310634498,-500.0,0.00016438,2]
[352781574,1739310634508,-500.0,0.00016438,2]
[352781575,1739310634517,-500.0,0.00016438,2]
[352781576,1739310634527,-500.0,0.00016438,2]
[352781577,1739310634536,-500.0,0.00016438,2]
[352781578,1739310634545,-500.0,0.00016438,2]
[352781579,1739310634555,-500.0,0.00016438,2]
[352781580,1739310634564,-500.0,0.00016438,2]
[352781581,1739310634573,-500.0,0.00016438,2]
[352781582,1739310634583,-500.0,0.00016438,2]
[352781583,1739310634592,-500.0,0.00016438,2]
[352781584,1739310634602,-500.0,0.00016438,2]
[352781585,1739310634612,-500.0,0.00016438,2]
[352781586,1739310634622,-500.0,0.00016438,2]
[352781587,1739310634632,-500.0,0.00016438,2]
[352781588,1739310634641,-505.99571447,0.00016438,2]
[352781589,1739310634652,-500.0,0.00016438,2]
[352781590,1739310634662,-500.0,0.00016438,2]
[352781591,1739310634672,-500.0,0.00016438,2]
[352781592,1739310634683,-500.0,0.00016438,2]
[352781593,1739310634695,-500.0,0.00016438,2]
[352781594,1739310634705,-500.0,0.00016438,2]
[352781595,1739310634715,-500.0,0.00016438,2]
[352781596,1739310634724,-449.80953791,0.00016438,2]
[352781597,1739310634734,-500.0,0.00016438,2]
[352781598,1739310634744,-500.0,0.00016438,2]
[352781599,1739310634753,-500.0,0.00016438,2]
[352781600,1739310634762,-500.0,0.00016438,2]
[352781601,1739310634772,-500.0,0.00016438,2]
[352781602,1739310634782,-500.0,0.00016438,2]
[352781603,1739310634792,-500.0,0.00016438,2]
[352781604,1739310634806,-500.0,0.00016438,2]
[352781605,1739310634815,-500.0,0.00016438,2]
[352781606,1739310634825,-500.0,0.00016438,2]
[352781607,1739310634836,-500.0,0.00016438,2]
[352781608,1739310634846,-500.0,0.00016438,2]
[352781609,1739310634855,-292.60095225,0.00016438,2]
[352781610,1739310634865,-500.0,0.00016438,2]
[352781611,1739310634874,-500.0,0.00016438,2]
[352781612,1739310634884,-500.0,0.00016438,2]
[352781613,1739310634893,-502.95714697,0.00016438,2]
[352781614,1739310634903,-500.0,0.00016438,2]
[352781615,1739310634912,-500.0,0.00016438,2]
[352781616,1739310634922,-500.0,0.00016438,2]
[352781617,1739310634932,-500.0,0.00016438,2]
[352781618,1739310634943,-500.0,0.00016438,2]
[352781619,1739310634953,-500.0,0.00016438,2]
[352781620,1739310634962,-500.0,0.00016438,2]
[352781621,1739310634972,-500.0,0.00016438,2]
[352781622,1739310634982,-500.0,0.00016438,2]
[352781623,1739310634992,-500.0,0.00016438,2]
[352781624,1739310635001,-500.0,0.00016438,2]
[352781625,1739310635011,-500.0,0.00016438,2]
[352781626,1739310635022,-500.0,0.00016438,2]
[352781627,1739310635031,-500.0,0.00016438,2]
[352781628,1739310635042,-500.0,0.00016438,2]
[352781629,1739310635052,-500.0,0.00016438,2]
[352781630,1739310635062,-500.0,0.00016438,2]
[352781631,1739310635073,-500.0,0.00016438,2]
[352781632,1739310635082,-500.0,0.00016438,2]
[352781633,1739310635093,-500.0,0.00016438,2]
[352781634,1739310635102,-1005.94745831,0.00016438,2]
[352781635,1739310635112,-500.0,0.00016438,2]
[352781636,1739310635122,-500.0,0.00016438,2]
[352781637,1739310635132,-500.0,0.00016438,2]
[352781638,1739310635142,-500.0,0.00016438,2]
[352781639,1739310635154,-500.0,0.00016438,2]
[352781640,1739310635164,-500.0,0.00016438,2]
[352781641,1739310635173,-500.0,0.00016438,2]
[352781642,1739310635184,-507.65179722,0.00016438,2]
[352781643,1739310635194,-500.0,0.00016438,2]
[352781644,1739310635203,-500.0,0.00016438,2]